Workbook

Sheet Tabelle1
B1: 2007 | C1: 2008 | D1: 2009 | E1: 2010 | F1: 2011 | G1: 2012 | H1: 2013
A2: Umsatz | B2: 1000 | C2: 1000 | D2: 900 | E2: 1000 | F2: 1100 | G2: 1200 | H2: 1300
A3: Kosten | B3: 900 | C3: 950 | D3: 1000 | E3: 950 | F3: 1000 | G3: 1050 | H3: 1100
A4: Gewinn | B4: =B2-B3 -> 100 | C4: =C2-C3 -> 50 | D4: -100 | E4: 50 | F4: 100 | G4: 150 | H4: 200

Sheet Tabelle2
B1: 2007 | C1: 2008 | D1: 2009 | E1: 2010 | F1: 2011 | G1: 2012 | H1: 2013
A2: Umsatz | B2: 1000 | C2: 1000 | D2: 900 | E2: 1000 | F2: 1100 | G2: 1200 | H2: 1300
A3: Kosten | B3: 900 | C3: 950 | D3: 1000 | E3: 950 | F3: 1000 | G3: 1050 | H3: 1100
A4: Gewinn | B4: =B2-B3 -> 100 | C4: =C2-C3 -> 50 | D4: -100 | E4: 50 | F4: 100 | G4: 150 | H4: 200

Sheet Tabelle3
B1: 2007 | C1: 2008 | D1: 2009 | E1: 2010 | F1: 2011 | G1: 2012 | H1: 2013
A2: Umsatz | B2: 1000 | C2: 1000 | D2: 900 | E2: 1000 | F2: 1100 | G2: 1200 | H2: 1300
A3: Umsatzanstieg | C3: =C2-B2 -> 0 | D3: =D2-C2 -> -100 | E3: 100 | F3: 100 | G3: 100 | H3: 100
A4: Umsatzwachtum | C4: =C3/B2 -> 0 | D4: =D3/C2 -> -0.1 | E4: 0.1111111111 | F4: 0.1 | G4: 0.09090909091 | H4: 0.08333333333

Sheet Tabelle4
B1: 2007 | C1: 2008 | D1: 2009 | E1: 2010 | F1: 2011 | G1: 2012 | H1: 2013 | I1: Durchschnitt
A2: Gewinn | B2: 100 | C2: 50 | D2: 0 | E2: 50 | F2: 100 | G2: 150 | H2: 200 | I2: =AVERAGE(B2:H2) -> 92.85714286
A3: Gewinnwachtum | C3: =(C2-B2)/B2 -> -0.5 | D3: =(D2-C2)/C2 -> -1 | F3: 1 | G3: 0.5 | H3: 0.3333333333 | I3: =AVERAGE(B3:H3) -> 

Sheet Tabelle5
B1: 1. Quartal | C1: 2. Quartal | D1: 3. Quartal | E1: 4. Quartal | F1: Jahr
A2: Umsatz | B2: =B3+B4 -> 210 | C2: =C3+C4 -> 480 | D2: 610 | E2: 350 | F2: =SUM(B2:E2) -> 1650
A3: Inland | B3: 120 | C3: 350 | D3: 400 | E3: 190
A4: Ausland | B4: 90 | C4: 130 | D4: 210 | E4: 160

Sheet Tabelle6
A1: Datum | B1: 09:00:00 | C1: 12:00:00 | D1: 15:00:00 | E1: 18:00:00 | G1: Anzahl Messwerte
A2: 2012-01-01 | B2: 9 | C2: 11 | D2: 15 | E2: 12 | G2: =COUNT(B2:E9) -> 27
A3: 2012-01-02 | C3: 12 | D3: 14
A4: 2012-01-03 | B4: 12 | C4: 12 | E4: 12
A5: 2012-01-04 | B5: 12 | C5: 15 | D5: 15 | E5: 12
A6: 2012-01-05 | C6: 12 | D6: 13 | E6: 10
A7: 2012-01-06 | B7: 8 | C7: 10 | D7: 12 | E7: 9
A8: 2012-01-07 | B8: 7 | C8: 9 | E8: 8
A9: 2012-01-08 | B9: 9 | C9: 12 | D9: 13 | E9: 10

Sheet Tabelle7
A1: Tag | B1: 24
A2: Monat | B2: 12
A3: Jahr | B3: 2011
A4: Datum | B4: =DATE(B3,B2,B1) -> 2011-12-24

Sheet Tabelle8
A1: Vorname | B1: Nachname | C1: Umsatz | E1: Umsatz mit Kleinkunden | F1: =SUMIF(C2:C48,"<150") -> 1641
A2: Alexander | B2: Iden | C2: 835
A3: Heinrich | B3: Beaufort | C3: 453
A4: Philippa | B4: Mortimer | C4: 678
A5: Elisabeth | B5: Percy | C5: 89
A6: Thomas | B6: Clarence | C6: 2556
A7: Eduard | B7: Plantagenet | C7: 45
A8: Heinrich | B8: Faust | C8: 34
A9: Anna | B9: Bullen | C9: 794
A10: Heinrich | B10: Richmond | C10: 567
A11: Hans | B11: Cade | C11: 89
A12: Jakob | B12: Gurney | C12: 567
A13: Hubert | B13: de Burgh | C13: 234
A14: Hugh | B14: Mortimer | C14: 33
A15: Eduard | B15: March | C15: 679
A16: Richard | B16: Butts | C16: 5557
A17: Heinrich | B17: Percy | C17: 34
A18: von | B18: Aumerle | C18: 445
A19: Bolligbroke | B19: Heinich | C19: 579
A20: Robert | B20: Bigot | C20: 34
A21: Johann | B21: Lancester | C21: 77
A22: Katharina | B22: von Valois | C22: 124
A23: Edmond | B23: Mortimer | C23: 24
A24: Wilhelm | B24: Sands | C24: 67
A25: Jeanne | B25: d'Arc | C25: 986
A26: Roger | B26: Mortimer | C26: 6
A27: Thomas | B27: Grey | C27: 89
A28: Humphrey | B28: Gloster | C28: 777
A29: Edmund | B29: Rutland | C29: 123
A30: Thomas | B30: Beaufort | C30: 12
A31: Grete | B31: Jordan | C31: 555
A32: Christoph | B32: Urswick | C32: 56
A33: Thomas | B33: Horner | C33: 77
A34: Richard | B34: Plantagenet | C34: 35
A35: Johan | B35: Holland | C35: 77
A36: Peter von | B36: Pompfret | C36: 67
A37: Thomas | B37: Lovell | C37: 56
A38: Georg | B38: Bevis | C38: 57
A39: Johann | B39: Talbot | C39: 56
A40: William | B40: Lucy | C40: 45
A41: Edmund | B41: Langley | C41: 321
A42: Richard | B42: Gloster | C42: 56
A43: Johann | B43: Falstaff | C43: 44
A44: Nikolas | B44: Vaux | C44: 45
A45: Anton | B45: Denny | C45: 45
A46: Peter | B46: von Pomfret | C46: 45
A47: Johann | B47: Gaunt | C47: 238
A48: Margaretha | B48: Windsor | C48: 234

Sheet Tabelle9
A1: Zufallszahl | B1: =RAND() -> 0.2161246381

Sheet Tabelle10
A1: Vorname | B1: Nachname | C1: Ort | D1: Umsatz | F1: Umsatz München
A2: Alexander | B2: Iden | C2: Bonn | D2: 835 | F2: =SUMIFS(D2:D48,C2:C48,"München") -> 10961
A3: Heinrich | B3: Beaufort | C3: Bruxelles | D3: 453
A4: Philippa | B4: Mortimer | C4: Drentwede | D4: 678
A5: Elisabeth | B5: Percy | C5: Freising | D5: 89
A6: Thomas | B6: Clarence | C6: Fürth | D6: 2556
A7: Eduard | B7: Plantagenet | C7: Fürth | D7: 45
A8: Heinrich | B8: Faust | C8: Garching | D8: 34
A9: Anna | B9: Bullen | C9: Gladbeck | D9: 794
A10: Heinrich | B10: Richmond | C10: Ismaning | D10: 567
A11: Hans | B11: Cade | C11: Marquartstein | D11: 89
A12: Jakob | B12: Gurney | C12: Marquartstein | D12: 567
A13: Hubert | B13: de Burgh | C13: München | D13: 234
A14: Hugh | B14: Mortimer | C14: München | D14: 33
A15: Eduard | B15: March | C15: München | D15: 679
A16: Richard | B16: Butts | C16: München | D16: 5557
A17: Heinrich | B17: Percy | C17: München | D17: 34
A18: von | B18: Aumerle | C18: München | D18: 445
A19: Bolligbroke | B19: Heinich | C19: München | D19: 579
A20: Robert | B20: Bigot | C20: München | D20: 34
A21: Johann | B21: Lancester | C21: München | D21: 77
A22: Katharina | B22: von Valois | C22: München | D22: 124
A23: Edmond | B23: Mortimer | C23: München | D23: 24
A24: Wilhelm | B24: Sands | C24: München | D24: 67
A25: Jeanne | B25: d'Arc | C25: München | D25: 986
A26: Roger | B26: Mortimer | C26: München | D26: 6
A27: Thomas | B27: Grey | C27: München | D27: 89
A28: Humphrey | B28: Gloster | C28: München | D28: 777
A29: Edmund | B29: Rutland | C29: München | D29: 123
A30: Thomas | B30: Beaufort | C30: München | D30: 12
A31: Grete | B31: Jordan | C31: München | D31: 555
A32: Christoph | B32: Urswick | C32: München | D32: 56
A33: Thomas | B33: Horner | C33: München | D33: 77
A34: Richard | B34: Plantagenet | C34: München | D34: 35
A35: Johan | B35: Holland | C35: München | D35: 77
A36: Peter von | B36: Pompfret | C36: München | D36: 67
A37: Thomas | B37: Lovell | C37: München | D37: 56
A38: Georg | B38: Bevis | C38: München | D38: 57
A39: Johann | B39: Talbot | C39: München | D39: 56
A40: William | B40: Lucy | C40: München | D40: 45
A41: Edmund | B41: Langley | C41: Nörvenich | D41: 321
A42: Richard | B42: Gloster | C42: Otterfing | D42: 56
A43: Johann | B43: Falstaff | C43: Schnaittenbach | D43: 44
A44: Nikolas | B44: Vaux | C44: Schnaittenbach | D44: 45
A45: Anton | B45: Denny | C45: Singen | D45: 45
A46: Peter | B46: von Pomfret | C46: Taufkirchen | D46: 45
A47: Johann | B47: Gaunt | C47: Unterschleißheim | D47: 238
A48: Margaretha | B48: Windsor | C48: Weilheim | D48: 234

Sheet Tabelle11
A1: Der Gewinn beträgt 1000
A2: Gewinn | B2: =MID(A1,20,4) -> 1000

Sheet Tabelle12
A1: Zinssatz | B1: 0.07 | C1: pro Jahr
A2: Anlagezeitraum | B2: 10 | C2: Jahre
A3: Einzahlungen | B3: 1000 | C3: pro Jahr
A4: Zukunftswert | B4: =-FV(B1,B2,B3) -> 13816.44796

Sheet Tabelle13
B1: Umsatz | C1: Rabatt | F1: ab Umsatz | G1: Rabatt
A2: Kunde 1 | B2: 2850 | C2: =VLOOKUP(B2,$F$2:$G$6,2) -> 0.03 | F2: 0 | G2: 0
A3: Kunde 2 | B3: 1500 | C3: =VLOOKUP(B3,$F$2:$G$6,2) -> 0.03 | F3: 100 | G3: 0.01
A4: Kunde 3 | B4: 70 | C4: 0 | F4: 1000 | G4: 0.03
A5: Kunde 4 | B5: 6500 | C5: 0.03 | F5: 10000 | G5: 0.05
A6: Kunde 5 | B6: 600 | C6: 0.01 | F6: 100000 | G6: 0.1

Sheet Tabelle14
B1: Marktanteil
A2: Konkurrent A | B2: 0.4
A3: Konkurrent B | B3: 0.25
A4: Konkurrent C | B4: 0.15
A5: Sonstige | B5: 0.2
A6: Gesamt | B6: 1

Sheet Tabelle15
B1: 2007 | C1: 2008 | D1: 2009 | E1: 2010 | F1: 2011 | G1: 2012
A2: Umsatz | B2: 1000 | C2: 1000 | D2: 900 | E2: 1000 | F2: 1100 | G2: 1300
A3: Kosten | B3: 900 | C3: 950 | D3: 1000 | E3: 950 | F3: 1000 | G3: 1100
A4: Gewinn | B4: 100 | C4: 50 | D4: -100 | E4: 50 | F4: 100 | G4: 200

Sheet Tabelle16
B1: 2007 | C1: 2008 | D1: 2009 | E1: 2010 | F1: 2011 | G1: 2012
A2: Umsatz | B2: 1000 | C2: 1000 | D2: 950 | E2: 1000 | F2: 1100 | G2: 1250
A3: Kosten | B3: 970 | C3: 980 | D3: 950 | E3: 980 | F3: 1050 | G3: 1200
A4: Gewinn | B4: =B2-B3 -> 30 | C4: =C2-C3 -> 20 | D4: 0 | E4: 20 | F4: 50 | G4: 50

Sheet Tabelle17
B1: 2007 | C1: 2008 | D1: 2009 | E1: 2010 | F1: 2011 | G1: 2012
A2: Umsatz | B2: 1000 | C2: 1000 | D2: 950 | E2: 1000 | F2: 1100 | G2: 1250
A3: Kosten | B3: 970 | C3: 980 | D3: 950 | E3: 980 | F3: 1050 | G3: 1200
A4: Gewinn | B4: =B2-B3 -> 30 | C4: =C2-C3 -> 20 | D4: 0 | E4: 20 | F4: 50 | G4: 50

Sheet Tabelle18
B1: 2007 | C1: 2008 | D1: 2009 | E1: 2010 | F1: 2011 | G1: 2012
A2: Gewinn | B2: 100 | C2: 50 | D2: -100 | E2: 50 | F2: 100 | G2: 200

Sheet Tabelle19
B1: 2007 | C1: 2008 | D1: 2009 | E1: 2010 | F1: 2011 | G1: 2012
A2: Umsatz | B2: 1000 | C2: 850 | D2: 800 | E2: 900 | F2: 1100 | G2: 1300

Sheet Tabelle20
A1: Inland | B1: 2011 | C1: 2912 | D1: 2013 | F1: Ausland | G1: 2011 | H1: 2912 | I1: 2913
A2: Umsatz | B2: 600 | C2: 650 | D2: 700 | F2: Umsatz | G2: 500 | H2: 700 | I2: 900
A3: Kosten | B3: 550 | C3: 600 | D3: 650 | F3: Kosten | G3: 500 | H3: 600 | I3: 700
A4: Gewinn | B4: =B2-B3 -> 50 | C4: =C2-C3 -> 50 | D4: 50 | F4: Gewinn | G4: =G2-G3 -> 0 | H4: =H2-H3 -> 100 | I4: 200
A6: Gesamt | B6: 2011 | C6: 2912 | D6: 2013
A7: Umsatz | B7: 1100 | C7: 1350 | D7: 1600
A8: Kosten | B8: 1050 | C8: 1200 | D8: 1350
A9: Gewinn | B9: 50 | C9: 150 | D9: 250

Sheet Tabelle21
B1: Jan | C1: Feb | D1: Mrz | E1: Apr | F1: Mai | G1: Jun | H1: 1. Halbjahr
A2: Umsatz | B2: =B3+B4 -> 170 | C2: =C3+C4 -> 185 | D2: 200 | E2: 210 | F2: 230 | G2: 255 | H2: =SUM(B2:G2) -> 1250
A3: Inland | B3: 130 | C3: 135 | D3: 140 | E3: 145 | F3: 160 | G3: 175 | H3: =SUM(B3:G3) -> 885
A4: Ausland | B4: =B5+B6 -> 40 | C4: 50 | D4: 60 | E4: 65 | F4: 70 | G4: 80 | H4: 365
A5: Europa | B5: 20 | C5: 20 | D5: 30 | E5: 30 | F5: 30 | G5: 40 | H5: =SUM(B5:G5) -> 170
A6: Übersee | B6: 20 | C6: 30 | D6: 30 | E6: 35 | F6: 40 | G6: 40 | H6: =SUM(B6:G6) -> 195
A7: Kosten | B7: =B8+B9+B10+B11 -> 157 | C7: =C8+C9+C10+C11 -> 166 | D7: 180 | E7: 186 | F7: 203 | G7: 218 | H7: 1110
A8: Herstellung | B8: 100 | C8: 111 | D8: 120 | E8: 126 | F8: 138 | G8: 153 | H8: =SUM(B8:G8) -> 748
A9: Vertrieb | B9: 27 | C9: 25 | D9: 30 | E9: 30 | F9: 35 | G9: 35 | H9: =SUM(B9:G9) -> 182
A10: Entwicklung | B10: 20 | C10: 20 | D10: 20 | E10: 20 | F10: 20 | G10: 20 | H10: 120
A11: Verwaltung | B11: 10 | C11: 10 | D11: 10 | E11: 10 | F11: 10 | G11: 10 | H11: 60
A12: Gewinn | B12: =B2-B7 -> 13 | C12: 19 | D12: 20 | E12: 24 | F12: 27 | G12: 37 | H12: 140

Sheet Tabelle22
B1: 2011 | C1: 2012 | D1: 2013
A2: Umsatz | B2: 1100 | C2: 1200 | D2: 1500
A3: Kosten | B3: 1050 | C3: 1250 | D3: 1450
A4: Gewinn | B4: =B2-B3 -> 50 | C4: =C2-C3 -> -50 | D4: 50

Sheet Tabelle23
A1: Umsatz | B1: 666.6666667
A2: Kosten | B2: =B3+B4 -> 666.6666667
A3: davon variabel | B3: =0.7*B1 -> 466.6666667
A4: davon fest | B4: 200
A5: Gewinn | B5: =B1-B2 -> 0

Sheet Tabelle37
A3: Summe von Nettoumsatz | B3: Spaltenbeschriftungen
A4: Zeilenbeschriftungen | B4: Automobil | C4: Chemie | D4: EDV | E4: Handel | F4: Hoch/Tief | G4: Landwirtschaft | H4: Maschinenbau | I4: Sonstiges | J4: Gesamtergebnis
A5: Bonn | H5: 835 | J5: 835
A6: Bruxelles | B6: 453 | J6: 453
A7: Drentwede | I7: 678 | J7: 678
A8: Freising | C8: 89 | J8: 89
A9: Fürth | C9: 2556 | I9: 45 | J9: 2601
A10: Garching | I10: 34 | J10: 34
A11: Gladbeck | B11: 794 | J11: 794
A12: Ismaning | D12: 567 | J12: 567
A13: Marquartstein | G13: 656 | J13: 656
A14: München | B14: 34 | C14: 596 | D14: 723 | E14: 912 | F14: 1742 | G14: 677 | H14: 561 | I14: 5716 | J14: 10961
A15: Nörvenich | H15: 321 | J15: 321
A16: Otterfing | B16: 56 | J16: 56
A17: Schnaittenbach | D17: 44 | H17: 45 | J17: 89
A18: Singen | F18: 45 | J18: 45
A19: Taufkirchen | D19: 45 | J19: 45
A20: Unterschleißheim | E20: 238 | J20: 238
A21: Weilheim | I21: 234 | J21: 234
A22: Gesamtergebnis | B22: 1337 | C22: 3241 | D22: 1379 | E22: 1150 | F22: 1787 | G22: 1333 | H22: 1762 | I22: 6707 | J22: 18696

Sheet Tabelle24
A1: Vorname | B1: Nachname | C1: Ort | D1: Branche | E1: Nettoumsatz
A2: Hubert | B2: de Burgh | C2: München | D2: Maschinenbau | E2: 234
A3: Thomas | B3: Clarence | C3: Fürth | D3: Chemie | E3: 2556
A4: Johann | B4: Falstaff | C4: Schnaittenbach | D4: EDV | E4: 44
A5: Heinrich | B5: Beaufort | C5: Bruxelles | D5: Automobil | E5: 453
A6: Hugh | B6: Mortimer | C6: München | D6: Handel | E6: 33
A7: Eduard | B7: March | C7: München | D7: Hoch/Tief | E7: 679
A8: Richard | B8: Butts | C8: München | D8: Sonstiges | E8: 5557
A9: Heinrich | B9: Percy | C9: München | D9: Maschinenbau | E9: 34
A10: von | B10: Aumerle | C10: München | D10: Chemie | E10: 445
A11: Nikolas | B11: Vaux | C11: Schnaittenbach | D11: Maschinenbau | E11: 45
A12: Bolligbroke | B12: Heinich | C12: München | D12: EDV | E12: 579
A13: Robert | B13: Bigot | C13: München | D13: Automobil | E13: 34
A14: Johann | B14: Gaunt | C14: Unterschleißheim | D14: Handel | E14: 238
A15: Johann | B15: Lancester | C15: München | D15: Hoch/Tief | E15: 77
A16: Katharina | B16: von Valois | C16: München | D16: Maschinenbau | E16: 124
A17: Heinrich | B17: Richmond | C17: Ismaning | D17: EDV | E17: 567
A18: Richard | B18: Gloster | C18: Otterfing | D18: Automobil | E18: 56
A19: Edmond | B19: Mortimer | C19: München | D19: Sonstiges | E19: 24
A20: Wilhelm | B20: Sands | C20: München | D20: EDV | E20: 67
A21: Eduard | B21: Plantagenet | C21: Fürth | D21: Sonstiges | E21: 45
A22: Jeanne | B22: d'Arc | C22: München | D22: Hoch/Tief | E22: 986
A23: Roger | B23: Mortimer | C23: München | D23: Chemie | E23: 6
A24: Thomas | B24: Grey | C24: München | D24: Chemie | E24: 89
A25: Hans | B25: Cade | C25: Marquartstein | D25: Landwirtschaft | E25: 89
A26: Humphrey | B26: Gloster | C26: München | D26: Handel | E26: 777
A27: Jakob | B27: Gurney | C27: Marquartstein | D27: Landwirtschaft | E27: 567
A28: Edmund | B28: Rutland | C28: München | D28: Sonstiges | E28: 123
A29: Edmund | B29: Langley | C29: Nörvenich | D29: Maschinenbau | E29: 321
A30: Thomas | B30: Beaufort | C30: München | D30: Sonstiges | E30: 12
A31: Heinrich | B31: Faust | C31: Garching | D31: Sonstiges | E31: 34
A32: Grete | B32: Jordan | C32: München | D32: Landwirtschaft | E32: 555
A33: Christoph | B33: Urswick | C33: München | D33: Maschinenbau | E33: 56
A34: Margaretha | B34: Windsor | C34: Weilheim | D34: Sonstiges | E34: 234
A35: Thomas | B35: Horner | C35: München | D35: EDV | E35: 77
A36: Philippa | B36: Mortimer | C36: Drentwede | D36: Sonstiges | E36: 678
A37: Alexander | B37: Iden | C37: Bonn | D37: Maschinenbau | E37: 835
A38: Anton | B38: Denny | C38: Singen | D38: Hoch/Tief | E38: 45
A39: Peter | B39: von Pomfret | C39: Taufkirchen | D39: EDV | E39: 45
A40: Anna | B40: Bullen | C40: Gladbeck | D40: Automobil | E40: 794
A41: Richard | B41: Plantagenet | C41: München | D41: Handel | E41: 35
A42: Johan | B42: Holland | C42: München | D42: Landwirtschaft | E42: 77
A43: Elisabeth | B43: Percy | C43: Freising | D43: Chemie | E43: 89
A44: Peter von | B44: Pompfret | C44: München | D44: Handel | E44: 67
A45: Thomas | B45: Lovell | C45: München | D45: Maschinenbau | E45: 56
A46: Georg | B46: Bevis | C46: München | D46: Maschinenbau | E46: 57
A47: Johann | B47: Talbot | C47: München | D47: Chemie | E47: 56
A48: William | B48: Lucy | C48: München | D48: Landwirtschaft | E48: 45

Sheet Tabelle39
A1: Summe von Nettoumsatz | B1: Spaltenbeschriftungen
A2: Zeilenbeschriftungen | B2: Automobil | C2: Chemie | D2: EDV | E2: Handel | F2: Hoch/Tief | G2: Landwirtschaft | H2: Maschinenbau | I2: Sonstiges | J2: Gesamtergebnis
A3: Bonn | H3: 835 | J3: 835
A4: Bruxelles | B4: 453 | J4: 453
A5: Drentwede | I5: 678 | J5: 678
A6: Freising | C6: 89 | J6: 89
A7: Fürth | C7: 2556 | I7: 45 | J7: 2601
A8: Garching | I8: 34 | J8: 34
A9: Gladbeck | B9: 794 | J9: 794
A10: Ismaning | D10: 567 | J10: 567
A11: Marquartstein | G11: 656 | J11: 656
A12: München | B12: 34 | C12: 596 | D12: 723 | E12: 912 | F12: 1742 | G12: 677 | H12: 561 | I12: 5716 | J12: 10961
A13: Nörvenich | H13: 321 | J13: 321
A14: Otterfing | B14: 56 | J14: 56
A15: Schnaittenbach | D15: 44 | H15: 45 | J15: 89
A16: Singen | F16: 45 | J16: 45
A17: Taufkirchen | D17: 45 | J17: 45
A18: Unterschleißheim | E18: 238 | J18: 238
A19: Weilheim | I19: 234 | J19: 234
A20: Gesamtergebnis | B20: 1337 | C20: 3241 | D20: 1379 | E20: 1150 | F20: 1787 | G20: 1333 | H20: 1762 | I20: 6707 | J20: 18696

Sheet Tabelle25
A1: Vorname | B1: Nachname | C1: Ort | D1: Branche | E1: Nettoumsatz
A2: Hubert | B2: de Burgh | C2: München | D2: Maschinenbau | E2: 234
A3: Thomas | B3: Clarence | C3: Fürth | D3: Chemie | E3: 2556
A4: Johann | B4: Falstaff | C4: Schnaittenbach | D4: EDV | E4: 44
A5: Heinrich | B5: Beaufort | C5: Bruxelles | D5: Automobil | E5: 453
A6: Hugh | B6: Mortimer | C6: München | D6: Handel | E6: 33
A7: Eduard | B7: March | C7: München | D7: Hoch/Tief | E7: 679
A8: Richard | B8: Butts | C8: München | D8: Sonstiges | E8: 5557
A9: Heinrich | B9: Percy | C9: München | D9: Maschinenbau | E9: 34
A10: von | B10: Aumerle | C10: München | D10: Chemie | E10: 445
A11: Nikolas | B11: Vaux | C11: Schnaittenbach | D11: Maschinenbau | E11: 45
A12: Bolligbroke | B12: Heinich | C12: München | D12: EDV | E12: 579
A13: Robert | B13: Bigot | C13: München | D13: Automobil | E13: 34
A14: Johann | B14: Gaunt | C14: Unterschleißheim | D14: Handel | E14: 238
A15: Johann | B15: Lancester | C15: München | D15: Hoch/Tief | E15: 77
A16: Katharina | B16: von Valois | C16: München | D16: Maschinenbau | E16: 124
A17: Heinrich | B17: Richmond | C17: Ismaning | D17: EDV | E17: 567
A18: Richard | B18: Gloster | C18: Otterfing | D18: Automobil | E18: 56
A19: Edmond | B19: Mortimer | C19: München | D19: Sonstiges | E19: 24
A20: Wilhelm | B20: Sands | C20: München | D20: EDV | E20: 67
A21: Eduard | B21: Plantagenet | C21: Fürth | D21: Sonstiges | E21: 45
A22: Jeanne | B22: d'Arc | C22: München | D22: Hoch/Tief | E22: 986
A23: Roger | B23: Mortimer | C23: München | D23: Chemie | E23: 6
A24: Thomas | B24: Grey | C24: München | D24: Chemie | E24: 89
A25: Hans | B25: Cade | C25: Marquartstein | D25: Landwirtschaft | E25: 89
A26: Humphrey | B26: Gloster | C26: München | D26: Handel | E26: 777
A27: Jakob | B27: Gurney | C27: Marquartstein | D27: Landwirtschaft | E27: 567
A28: Edmund | B28: Rutland | C28: München | D28: Sonstiges | E28: 123
A29: Edmund | B29: Langley | C29: Nörvenich | D29: Maschinenbau | E29: 321
A30: Thomas | B30: Beaufort | C30: München | D30: Sonstiges | E30: 12
A31: Heinrich | B31: Faust | C31: Garching | D31: Sonstiges | E31: 34
A32: Grete | B32: Jordan | C32: München | D32: Landwirtschaft | E32: 555
A33: Christoph | B33: Urswick | C33: München | D33: Maschinenbau | E33: 56
A34: Margaretha | B34: Windsor | C34: Weilheim | D34: Sonstiges | E34: 234
A35: Thomas | B35: Horner | C35: München | D35: EDV | E35: 77
A36: Philippa | B36: Mortimer | C36: Drentwede | D36: Sonstiges | E36: 678
A37: Alexander | B37: Iden | C37: Bonn | D37: Maschinenbau | E37: 835
A38: Anton | B38: Denny | C38: Singen | D38: Hoch/Tief | E38: 45
A39: Peter | B39: von Pomfret | C39: Taufkirchen | D39: EDV | E39: 45
A40: Anna | B40: Bullen | C40: Gladbeck | D40: Automobil | E40: 794
A41: Richard | B41: Plantagenet | C41: München | D41: Handel | E41: 35
A42: Johan | B42: Holland | C42: München | D42: Landwirtschaft | E42: 77
A43: Elisabeth | B43: Percy | C43: Freising | D43: Chemie | E43: 89
A44: Peter von | B44: Pompfret | C44: München | D44: Handel | E44: 67
A45: Thomas | B45: Lovell | C45: München | D45: Maschinenbau | E45: 56
A46: Georg | B46: Bevis | C46: München | D46: Maschinenbau | E46: 57
A47: Johann | B47: Talbot | C47: München | D47: Chemie | E47: 56
A48: William | B48: Lucy | C48: München | D48: Landwirtschaft | E48: 45

Sheet Tabelle26
B1: 2007 | C1: 2008 | D1: 2009 | E1: 2010 | F1: 2011 | G1: 2012 | H1: 2013
A2: Umsatz | B2: 1000 | C2: 1000 | D2: 1000 | E2: 900 | F2: 1100 | G2: 1500 | H2: 1300
A3: Kosten | B3: 900 | C3: 950 | D3: 1000 | E3: 950 | F3: 1000 | G3: 1050 | H3: 1100
A4: Gewinn | B4: =B2-B3 -> 100 | C4: =C2-C3 -> 50 | D4: 0 | E4: -50 | F4: 100 | G4: 450 | H4: 200

Sheet Tabelle27
B1: 2007 | C1: 2008 | D1: 2009 | E1: 2010 | F1: 2011 | G1: 2012 | H1: 2013
A2: Umsatz | B2: 1000 | C2: 1000 | D2: 900.5 | E2: -1000 | F2: 1100 | G2: 1200 | H2: 1300
A3: Kosten | B3: 900 | C3: 950 | D3: 1000 | E3: 950 | F3: 1000 | G3: 1050 | H3: unbekannt
A4: Gewinn | B4: =B2-B3 -> 100 | C4: =C2-C3 -> 50 | D4: -99.5 | E4: -1950 | F4: 100 | G4: 150

Sheet Tabelle28
B1: 2007 | C1: 2008 | D1: 2009 | E1: 2010 | F1: 2011 | G1: 2012 | H1: 2013
A2: Umsatz | B2: 1000 | C2: 1000 | D2: 900 | E2: 1000 | F2: 1100 | G2: 1200 | H2: 1300
A3: Kosten | B3: 900 | C3: 950 | D3: 1000 | E3: 950 | F3: 1000 | G3: 1050 | H3: 1100
A4: Gewinn | B4: =B2-B3 -> 100 | C4: =C2-C3 -> 50 | D4: -100 | E4: 50 | F4: 100 | G4: 150 | H4: 200

Sheet Tabelle29
B1: 2007 | C1: 2008 | D1: 2009 | E1: 2010 | F1: 2011 | G1: 2012 | H1: 2013
A2: Umsatz | B2: 1000 | C2: 1000 | D2: 900 | E2: 1000 | F2: 1100 | G2: 1200 | H2: 1300
A3: Kosten | B3: 900 | C3: 950 | D3: 1000 | E3: 950 | F3: 1000 | G3: 1050 | H3: 1100
A4: Gewinn | B4: =B2-B3 -> 100 | C4: =C2-C3 -> 50 | D4: -100 | E4: 50 | F4: 100 | G4: 150 | H4: 200

Sheet Tabelle30
A1: Hubert | B1: de Burgh | C1: München | D1: Maschinenbau | E1: 234
A2: Thomas | B2: Clarence | C2: Fürth | D2: Chemie | E2: 2556
A3: Johann | B3: Falstaff | C3: Schnaittenbach | D3: EDV | E3: 44
A4: Heinrich | B4: Beaufort | C4: Bruxelles | D4: Automobil | E4: 453
A5: Hugh | B5: Mortimer | C5: München | D5: Handel | E5: 33
A6: Eduard | B6: March | C6: München | D6: Hoch/Tief | E6: 679
A7: Richard | B7: Butts | C7: München | D7: Sonstiges | E7: 5557
A8: Heinrich | B8: Percy | C8: München | D8: Maschinenbau | E8: 34
A9: von | B9: Aumerle | C9: München | D9: Chemie | E9: 445
A10: Nikolas | B10: Vaux | C10: Schnaittenbach | D10: Maschinenbau | E10: 45
A11: Bolligbroke | B11: Heinich | C11: München | D11: EDV | E11: 579
A12: Robert | B12: Bigot | C12: München | D12: Automobil | E12: 34
A13: Johann | B13: Gaunt | C13: Unterschleißheim | D13: Handel | E13: 238
A14: Johann | B14: Lancester | C14: München | D14: Hoch/Tief | E14: 77
A15: Katharina | B15: von Valois | C15: München | D15: Maschinenbau | E15: 124
A16: Heinrich | B16: Richmond | C16: Ismaning | D16: EDV | E16: 567
A17: Richard | B17: Gloster | C17: Otterfing | D17: Automobil | E17: 56
A18: Edmond | B18: Mortimer | C18: München | D18: Sonstiges | E18: 24
A19: Wilhelm | B19: Sands | C19: München | D19: EDV | E19: 67
A20: Eduard | B20: Plantagenet | C20: Fürth | D20: Sonstiges | E20: 45
A21: Jeanne | B21: d'Arc | C21: München | D21: Hoch/Tief | E21: 986
A22: Roger | B22: Mortimer | C22: München | D22: Chemie | E22: 6
A23: Thomas | B23: Grey | C23: München | D23: Chemie | E23: 89
A24: Hans | B24: Cade | C24: Marquartstein | D24: Landwirtschaft | E24: 89
A25: Humphrey | B25: Gloster | C25: München | D25: Handel | E25: 777
A26: Jakob | B26: Gurney | C26: Marquartstein | D26: Landwirtschaft | E26: 567
A27: Edmund | B27: Rutland | C27: München | D27: Sonstiges | E27: 123
A28: Edmund | B28: Langley | C28: Nörvenich | D28: Maschinenbau | E28: 321
A29: Thomas | B29: Beaufort | C29: München | D29: Sonstiges | E29: 12
A30: Heinrich | B30: Faust | C30: Garching | D30: Sonstiges | E30: 34
A31: Grete | B31: Jordan | C31: München | D31: Landwirtschaft | E31: 555
A32: Christoph | B32: Urswick | C32: München | D32: Maschinenbau | E32: 56
A33: Margaretha | B33: Windsor | C33: Weilheim | D33: Sonstiges | E33: 234
A34: Thomas | B34: Horner | C34: München | D34: EDV | E34: 77
A35: Philippa | B35: Mortimer | C35: Drentwede | D35: Sonstiges | E35: 678
A36: Alexander | B36: Iden | C36: Bonn | D36: Maschinenbau | E36: 835
A37: Anton | B37: Denny | C37: Singen | D37: Hoch/Tief | E37: 45
A38: Peter | B38: von Pomfret | C38: Taufkirchen | D38: EDV | E38: 45
A39: Anna | B39: Bullen | C39: Gladbeck | D39: Automobil | E39: 794
A40: Richard | B40: Plantagenet | C40: München | D40: Handel | E40: 35
A41: Johan | B41: Holland | C41: München | D41: Landwirtschaft | E41: 77
A42: Elisabeth | B42: Percy | C42: Freising | D42: Chemie | E42: 89
A43: Peter von | B43: Pompfret | C43: München | D43: Handel | E43: 67
A44: Thomas | B44: Lovell | C44: München | D44: Maschinenbau | E44: 56
A45: Georg | B45: Bevis | C45: München | D45: Maschinenbau | E45: 57
A46: Johann | B46: Talbot | C46: München | D46: Chemie | E46: 56
A47: William | B47: Lucy | C47: München | D47: Landwirtschaft | E47: 45

Sheet Tabelle31
A1: Vorname | B1: Nachname | C1: Ort | D1: Branche | E1: Nettoumsatz
A2: Hubert | B2: de Burgh | C2: München | D2: Maschinenbau | E2: 234
A3: Thomas | B3: Clarence | C3: Fürth | D3: Chemie | E3: 2556
A4: Johann | B4: Falstaff | C4: Schnaittenbach | D4: EDV | E4: 44
A5: Heinrich | B5: Beaufort | C5: Bruxelles | D5: Automobil | E5: 453
A6: Hugh | B6: Mortimer | C6: München | D6: Handel | E6: 33
A7: Eduard | B7: March | C7: München | D7: Hoch/Tief | E7: 679
A8: Richard | B8: Butts | C8: München | D8: Sonstiges | E8: 5557
A9: Heinrich | B9: Percy | C9: München | D9: Maschinenbau | E9: 34
A10: von | B10: Aumerle | C10: München | D10: Chemie | E10: 445
A11: Nikolas | B11: Vaux | C11: Schnaittenbach | D11: Maschinenbau | E11: 45
A12: Bolligbroke | B12: Heinich | C12: München | D12: EDV | E12: 579
A13: Robert | B13: Bigot | C13: München | D13: Automobil | E13: 34
A14: Johann | B14: Gaunt | C14: Unterschleißheim | D14: Handel | E14: 238
A15: Johann | B15: Lancester | C15: München | D15: Hoch/Tief | E15: 77
A16: Katharina | B16: von Valois | C16: München | D16: Maschinenbau | E16: 124
A17: Heinrich | B17: Richmond | C17: Ismaning | D17: EDV | E17: 567
A18: Richard | B18: Gloster | C18: Otterfing | D18: Automobil | E18: 56
A19: Edmond | B19: Mortimer | C19: München | D19: Sonstiges | E19: 24
A20: Wilhelm | B20: Sands | C20: München | D20: EDV | E20: 67
A21: Eduard | B21: Plantagenet | C21: Fürth | D21: Sonstiges | E21: 45
A22: Jeanne | B22: d'Arc | C22: München | D22: Hoch/Tief | E22: 986
A23: Roger | B23: Mortimer | C23: München | D23: Chemie | E23: 6
A24: Thomas | B24: Grey | C24: München | D24: Chemie | E24: 89
A25: Hans | B25: Cade | C25: Marquartstein | D25: Landwirtschaft | E25: 89
A26: Humphrey | B26: Gloster | C26: München | D26: Handel | E26: 777
A27: Jakob | B27: Gurney | C27: Marquartstein | D27: Landwirtschaft | E27: 567
A28: Edmund | B28: Rutland | C28: München | D28: Sonstiges | E28: 123
A29: Edmund | B29: Langley | C29: Nörvenich | D29: Maschinenbau | E29: 321
A30: Thomas | B30: Beaufort | C30: München | D30: Sonstiges | E30: 12
A31: Heinrich | B31: Faust | C31: Garching | D31: Sonstiges | E31: 34
A32: Grete | B32: Jordan | C32: München | D32: Landwirtschaft | E32: 555
A33: Christoph | B33: Urswick | C33: München | D33: Maschinenbau | E33: 56
A34: Margaretha | B34: Windsor | C34: Weilheim | D34: Sonstiges | E34: 234
A35: Thomas | B35: Horner | C35: München | D35: EDV | E35: 77
A36: Philippa | B36: Mortimer | C36: Drentwede | D36: Sonstiges | E36: 678
A37: Alexander | B37: Iden | C37: Bonn | D37: Maschinenbau | E37: 835
A38: Anton | B38: Denny | C38: Singen | D38: Hoch/Tief | E38: 45
A39: Peter | B39: von Pomfret | C39: Taufkirchen | D39: EDV | E39: 45
A40: Anna | B40: Bullen | C40: Gladbeck | D40: Automobil | E40: 794
A41: Richard | B41: Plantagenet | C41: München | D41: Handel | E41: 35
A42: Johan | B42: Holland | C42: München | D42: Landwirtschaft | E42: 77
A43: Elisabeth | B43: Percy | C43: Freising | D43: Chemie | E43: 89
A44: Peter von | B44: Pompfret | C44: München | D44: Handel | E44: 67
A45: Thomas | B45: Lovell | C45: München | D45: Maschinenbau | E45: 56
A46: Georg | B46: Bevis | C46: München | D46: Maschinenbau | E46: 57
A47: Johann | B47: Talbot | C47: München | D47: Chemie | E47: 56
A48: William | B48: Lucy | C48: München | D48: Landwirtschaft | E48: 45

Sheet Tabelle32
A1: Vorname | B1: Nachname | C1: Ort | D1: Branche | E1: Nettoumsatz
A2: Hubert | B2: de Burgh | C2: München | D2: Maschinenbau | E2: 234
A3: Thomas | B3: Clarence | C3: Fürth | D3: Chemie | E3: 2556
A4: Johann | B4: Falstaff | C4: Schnaittenbach | D4: EDV | E4: 44
A5: Heinrich | B5: Beaufort | C5: Bruxelles | D5: Automobil | E5: 453
A6: Hugh | B6: Mortimer | C6: München | D6: Handel | E6: 33
A7: Eduard | B7: March | C7: München | D7: Hoch/Tief | E7: 679
A8: Richard | B8: Butts | C8: München | D8: Sonstiges | E8: 5557
A9: Heinrich | B9: Percy | C9: München | D9: Maschinenbau | E9: 34
A10: von | B10: Aumerle | C10: München | D10: Chemie | E10: 445
A11: Nikolas | B11: Vaux | C11: Schnaittenbach | D11: Maschinenbau | E11: 45
A12: Bolligbroke | B12: Heinich | C12: München | D12: EDV | E12: 579
A13: Robert | B13: Bigot | C13: München | D13: Automobil | E13: 34
A14: Johann | B14: Gaunt | C14: Unterschleißheim | D14: Handel | E14: 238
A15: Johann | B15: Lancester | C15: München | D15: Hoch/Tief | E15: 77
A16: Katharina | B16: von Valois | C16: München | D16: Maschinenbau | E16: 124
A17: Heinrich | B17: Richmond | C17: Ismaning | D17: EDV | E17: 567
A18: Richard | B18: Gloster | C18: Otterfing | D18: Automobil | E18: 56
A19: Edmond | B19: Mortimer | C19: München | D19: Sonstiges | E19: 24
A20: Wilhelm | B20: Sands | C20: München | D20: EDV | E20: 67
A21: Eduard | B21: Plantagenet | C21: Fürth | D21: Sonstiges | E21: 45
A22: Jeanne | B22: d'Arc | C22: München | D22: Hoch/Tief | E22: 986
A23: Roger | B23: Mortimer | C23: München | D23: Chemie | E23: 6
A24: Thomas | B24: Grey | C24: München | D24: Chemie | E24: 89
A25: Hans | B25: Cade | C25: Marquartstein | D25: Landwirtschaft | E25: 89
A26: Humphrey | B26: Gloster | C26: München | D26: Handel | E26: 777
A27: Jakob | B27: Gurney | C27: Marquartstein | D27: Landwirtschaft | E27: 567
A28: Edmund | B28: Rutland | C28: München | D28: Sonstiges | E28: 123
A29: Edmund | B29: Langley | C29: Nörvenich | D29: Maschinenbau | E29: 321
A30: Thomas | B30: Beaufort | C30: München | D30: Sonstiges | E30: 12
A31: Heinrich | B31: Faust | C31: Garching | D31: Sonstiges | E31: 34
A32: Grete | B32: Jordan | C32: München | D32: Landwirtschaft | E32: 555
A33: Christoph | B33: Urswick | C33: München | D33: Maschinenbau | E33: 56
A34: Margaretha | B34: Windsor | C34: Weilheim | D34: Sonstiges | E34: 234
A35: Thomas | B35: Horner | C35: München | D35: EDV | E35: 77
A36: Philippa | B36: Mortimer | C36: Drentwede | D36: Sonstiges | E36: 678
A37: Alexander | B37: Iden | C37: Bonn | D37: Maschinenbau | E37: 835
A38: Anton | B38: Denny | C38: Singen | D38: Hoch/Tief | E38: 45
A39: Peter | B39: von Pomfret | C39: Taufkirchen | D39: EDV | E39: 45
A40: Anna | B40: Bullen | C40: Gladbeck | D40: Automobil | E40: 794
A41: Richard | B41: Plantagenet | C41: München | D41: Handel | E41: 35
A42: Johan | B42: Holland | C42: München | D42: Landwirtschaft | E42: 77
A43: Elisabeth | B43: Percy | C43: Freising | D43: Chemie | E43: 89
A44: Peter von | B44: Pompfret | C44: München | D44: Handel | E44: 67
A45: Thomas | B45: Lovell | C45: München | D45: Maschinenbau | E45: 56
A46: Georg | B46: Bevis | C46: München | D46: Maschinenbau | E46: 57
A47: Johann | B47: Talbot | C47: München | D47: Chemie | E47: 56
A48: William | B48: Lucy | C48: München | D48: Landwirtschaft | E48: 45

Sheet Tabelle33
B1: 2007 | C1: 2008 | D1: 2009 | E1: 2010 | F1: 2011 | G1: 2012 | H1: 2013
A2: Umsatz | B2: 1000 | C2: 1000 | D2: 900 | E2: 1000 | F2: 1100 | G2: 1200 | H2: 1300
A3: Kosten | B3: 900 | C3: 950 | D3: 1000 | E3: 950 | F3: 1000 | G3: 1050 | H3: 1100
A4: Gewinn | B4: =B2-B3 -> 100 | C4: =C2-C3 -> 50 | D4: -100 | E4: 50 | F4: 100 | G4: 150 | H4: 200

Sheet Tabelle34
B1: 2007 | C1: 2008 | D1: 2009 | E1: 2010 | F1: 2011 | G1: 2012 | H1: 2013
A2: Umsatz | B2: 1000 | C2: 1000 | D2: 900 | E2: 1000 | F2: 1100 | G2: 1200 | H2: 1300
A3: Kosten | B3: 900 | C3: 950 | D3: 1000 | E3: 950 | F3: 1000 | G3: 1050 | H3: 1100
A4: Gewinn | B4: =B2-B3 -> 100 | C4: =C2-C3 -> 50 | D4: -100 | E4: 50 | F4: 100 | G4: 150 | H4: 200

Sheet Tabelle35
B1: 2007 | C1: =B1+1 -> 2008 | D1: =C1+1 -> 2009 | E1: 2010 | F1: 2011 | G1: 2012 | H1: 2013
A7: 2007
A8: 2008
A9: 2009
A10: 2010
